fUST/lending_fUST_20251230
["ID","MTS","AMOUNT","RATE_DAILY","PERIOD"]
[400070336,1767065295266,10000.01,0.00012895,2]
[400070337,1767065295294,10000.01,0.00012895,2]
[400070338,1767065307271,693.97429499,0.0001,7]
[400070339,1767065309274,333.48199856,0.00013,3]
[400070341,1767065313218,-1972.9,0.00012329,2]
[400070342,1767065313248,-500.0,0.00012894,2]
[400070343,1767065313277,-500.0,0.00012894,2]
[400070344,1767065313309,-500.0,0.00012894,2]
[400070345,1767065313336,-500.0,0.00012894,2]
[400070346,1767065313364,-500.0,0.00012894,2]
[400070347,1767065313396,-500.0,0.00012894,2]
[400070348,1767065313655,-302.54669743,0.00012894,2]
[400070349,1767065313683,-500.0,0.00012894,2]
[400070350,1767065313729,-500.0,0.00012894,2]
[400070351,1767065313799,500.0,0.00012894,2]
[400070352,1767065313872,500.0,0.00012894,2]
[400070353,1767065313972,500.0,0.00012894,2]
[400070354,1767065314118,158.27569678,0.00012894,2]
[400070355,1767065314156,316.4206861,0.00012894,2]
[400070356,1767065317370,5000.0,0.00012895,2]
[400070357,1767065318104,420.22022226,0.00012329,2]
[400070358,1767065318127,5707.72977774,0.00012329,2]
[400070359,1767065318769,4292.28022226,0.0001,2]
[400070360,1767065318792,2709.2703779,0.0001,2]
[400070361,1767065319309,2916.92938052,0.0001,2]
[400070362,1767065322309,-1120.51419632,0.00012895,2]
[400070363,1767065323244,500.0,0.00012894,2]
[400070364,1767065323287,500.0,0.00012894,2]
[400070365,1767065328535,3373.81024158,0.00012329,2]
[400070366,1767065328565,1732.81975842,0.00012329,2]
[400070367,1767065334694,425.01692761,0.00012895,2]
[400070368,1767065338980,4255.52,0.00012329,2]
[400070369,1767065342345,300.0,0.00012894,2]
[400070370,1767065342492,3286.65331397,0.00012895,2]
[400070371,1767065342519,1713.34668603,0.00012895,2]
[400070372,1767065349765,-3546.27,0.00012329,2]
[400070373,1767065351248,-4368.19614226,0.00012895,2]
[400070374,1767065351369,-10000.01,0.00012895,2]
[400070375,1767065352930,-10000.01,0.00012895,2]
[400070376,1767065353119,-10000.01,0.00012895,2]
[400070377,1767065353244,-10000.01,0.00012895,2]
[400070378,1767065353369,-500.0,0.00012894,2]
[400070379,1767065353415,-500.0,0.00012894,2]
[400070380,1767065353425,-8500.01,0.00012895,2]
[400070381,1767065353528,-500.0,0.00012894,2]
[400070382,1767065353558,-500.0,0.00012894,2]
[400070383,1767065353609,-250.0,0.00012894,2]
[400070384,1767065353618,-7750.01,0.00012895,2]
[400070385,1767065353664,-10000.01,0.00012895,2]
[400070386,1767065353913,-10000.01,0.00012895,2]
[400070387,1767065354012,-10000.01,0.00012895,2]
[400070392,1767065364899,-3160.84,0.00012329,2]
[400070393,1767065364936,-3678.33,0.00012766,2]
[400070394,1767065365006,-1321.67,0.00012766,2]
[400070395,1767065366312,5000.0,0.00012205,2]
[400070396,1767065370648,2356.67,0.00012329,2]
[400070397,1767065370669,494.43,0.00012329,2]
[400070402,1767065381325,2375.91,0.00012329,2]
[400070403,1767065382010,5000.0,0.00012895,2]
[400070404,1767065386375,-4773.01,0.00012895,2]
[400070405,1767065386476,-10000.01,0.00012895,2]
[400070406,1767065386624,-10000.01,0.00012895,2]
[400070407,1767065386728,-10000.01,0.00012895,2]
[400070408,1767065386863,-10000.01,0.00012895,2]
[400070409,1767065386974,-10000.01,0.00012895,2]
[400070410,1767065389345,-10000.01,0.00012895,2]
[400070411,1767065389505,-10000.01,0.00012895,2]
[400070412,1767065393750,-338.13897447,0.00012329,2]
[400070413,1767065395302,-352.42443258,0.00012329,2]
[400070414,1767065399098,-394.20694168,0.00012329,2]
[400070415,1767065400663,-293.0672473,0.00012329,2]
[400070416,1767065403034,-256.52846444,0.00012329,2]
[400070417,1767065405513,5000.0,0.00012319,2]
[400070418,1767065405759,-316.69797374,0.00012329,2]
[400070419,1767065407834,-28.86596579,0.00012329,2]
[400070420,1767065407858,-227.19384157,0.00012329,2]
[400070421,1767065410835,-151.3,0.00012329,2]
[400070422,1767065413638,-151.88,0.00012329,2]
[400070423,1767065415238,-346.55133339,0.00012329,2]
[400070424,1767065428399,5000.0,0.00012319,2]
[400070453,1767065432231,-773.01482504,0.00012329,2]
[400070455,1767065432241,-247.72164978,0.00012329,2]
[400070465,1767065432338,-1127.22835022,0.00012329,2]
[400070467,1767065432348,-1145.79,0.00012329,2]
[400070469,1767065432357,-594.0,0.00012329,2]
[400070471,1767065432367,-500.0,0.00012894,2]
[400070473,1767065432377,-500.0,0.00012894,2]
[400070475,1767065432387,-500.0,0.00012894,2]
[400070477,1767065432396,-500.0,0.00012894,2]
[400070479,1767065432405,-500.0,0.00012894,2]
[400070481,1767065432414,-500.0,0.00012894,2]
[400070483,1767065432424,-500.0,0.00012894,2]
[400070485,1767065432433,-500.0,0.00012894,2]
[400070487,1767065432442,-500.0,0.00012894,2]
[400070489,1767065432451,-500.0,0.00012894,2]
[400070491,1767065432460,-500.0,0.00012894,2]
[400070493,1767065432469,-500.0,0.00012894,2]
[400070495,1767065432480,-500.0,0.00012894,2]
[400070497,1767065432490,-500.0,0.00012894,2]
[400070499,1767065432500,-500.0,0.00012894,2]
[400070501,1767065432509,-191.07382533,0.00012894,2]
[400070503,1767065432518,-500.0,0.00012894,2]
[400070505,1767065432528,-498.22714793,0.00012894,2]
[400070549,1767065438292,-558.80392746,0.00012329,2]
[400070560,1767065438403,-497.24607254,0.00012329,2]
[400070562,1767065438413,-1.77285207,0.00012894,2]
[400070564,1767065438423,-500.0,0.00012894,2]
[400070565,1767065438432,-500.0,0.00012894,2]
[400070566,1767065438442,-500.0,0.00012894,2]
[400070567,1767065438452,-500.0,0.00012894,2]
[400070568,1767065438461,-500.0,0.00012894,2]
[400070569,1767065438471,-500.0,0.00012894,2]
[400070570,1767065438480,-500.0,0.00012894,2]
[400070571,1767065438490,-428.60645545,0.00012894,2]
[400070572,1767065438499,-385.82561748,0.00012894,2]
[400070573,1767065438512,-114.17438252,0.00012894,2]
[400070574,1767065438522,-500.0,0.00012894,2]
[400070575,1767065438532,-7.28606368,0.00012894,2]
[400070590,1767065440946,-3e-08,0.00012894,2]
[400070593,1767065441118,-492.71393629,0.00012894,2]
[400070595,1767065441127,-500.0,0.00012894,2]
[400070596,1767065441137,-369.32939376,0.00012894,2]
[400070615,1767065446125,-880.04,0.00012329,2]
[400070616,1767065446135,-244.3070987,0.00012894,2]
[400070617,1767065446145,-500.0,0.00012894,2]
[400070618,1767065446157,-500.0,0.00012894,2]
[400070619,1767065446167,-500.0,0.00012894,2]
[400070620,1767065446179,-500.0,0.00012894,2]
[400070621,1767065446189,-283.3329013,0.00012894,2]
[400070622,1767065446209,-216.6670987,0.00012894,2]
[400070624,1767065446220,-350.0,0.00012894,2]
[400070626,1767065446231,-327.5429013,0.00012894,2]
[400070635,1767065446734,-172.4570987,0.00012894,2]
[400070636,1767065446745,-300.0,0.00012894,2]
[400070637,1767065446755,-300.0,0.00012894,2]
[400070638,1767065446766,-5000.0,0.00012895,2]
[400070639,1767065446776,-8165.8440253,0.00012895,2]
[400070640,1767065454317,733.36,0.00012329,2]
[400070641,1767065460180,5000.0,0.00012756,2]
[400070642,1767065465178,611.14,0.00012329,2]
[400070643,1767065475801,509.28,0.00012329,2]
[400070644,1767065482567,3146.23,0.00012756,2]
[400070645,1767065482588,1853.77,0.00012756,2]
[400070646,1767065486253,424.4,0.00012329,2]
[400070647,1767065489443,457.82,0.0001,2]
[400070648,1767065491918,457.82,0.000102,2]
[400070649,1767065494402,457.82,0.000104,2]
[400070650,1767065496681,353.67,0.00012329,2]
[400070651,1767065496775,457.82,0.000106,2]
[400070652,1767065499152,457.82,0.000108,2]
[400070653,1767065501580,457.82,0.00011,2]
[400070654,1767065505659,4621.25,0.00012756,2]
[400070655,1767065505681,378.75,0.00012756,2]
[400070656,1767065507139,306.19,0.00012329,2]
[400070657,1767065517557,255.15,0.00012329,2]
[400070658,1767065518000,-5000.0,0.00012766,2]
[400070659,1767065521868,0.01,0.00012756,2]
[400070660,1767065521889,3971.55390974,0.00012756,2]
[400070661,1767065527964,212.63,0.00012329,2]
[400070662,1767065530253,5000.0,0.00012766,2]
[400070663,1767065532919,-300.0,0.00012892,2]
[400070664,1767065532949,-663.68757768,0.00012892,2]
[400070665,1767065538633,177.19,0.00012329,2]
[400070666,1767065549068,885.98,0.00012329,2]
[400070667,1767065553443,5000.0,0.00012893,2]
[400070668,1767065557742,500.0,0.00012892,2]
[400070669,1767065557769,256.112602,0.00012892,2]
[400070670,1767065557797,500.0,0.00012892,2]
[400070671,1767065557919,500.0,0.00012892,2]
[400070672,1767065557947,500.0,0.00012892,2]
[400070673,1767065558253,524.20110122,0.00012892,2]
[400070674,1767065558360,500.0,0.00012892,2]
[400070675,1767065558389,299.74387377,0.00012892,2]
[400070676,1767065558440,500.0,0.00012892,2]
[400070677,1767065558470,33.97242301,0.00012892,2]
[400070678,1767065558494,466.02757699,0.00012892,2]
[400070679,1767065558538,500.0,0.00012892,2]
[400070680,1767065558573,500.0,0.00012892,2]
[400070681,1767065559974,500.0,0.00012892,2]
[400070682,1767065560002,500.0,0.00012892,2]
[400070683,1767065560035,500.0,0.00012892,2]
[400070684,1767065560065,500.0,0.00012892,2]
[400070685,1767065560093,500.0,0.00012892,2]
[400070686,1767065560121,500.0,0.00012892,2]
[400070687,1767065560148,500.0,0.00012892,2]
[400070688,1767065560175,500.0,0.00012892,2]
[400070689,1767065560202,500.0,0.00012892,2]
[400070690,1767065560228,500.0,0.00012892,2]
[400070691,1767065560265,500.0,0.00012892,2]
[400070692,1767065560296,500.0,0.00012892,2]
[400070693,1767065560324,500.0,0.00012892,2]
[400070694,1767065560353,500.0,0.00012892,2]
[400070695,1767065560380,500.0,0.00012892,2]
[400070696,1767065560408,500.0,0.00012892,2]
[400070697,1767065560436,500.0,0.00012892,2]
[400070698,1767065560464,33.98242301,0.00012892,2]
[400070699,1767065560486,466.01757699,0.00012892,2]
[400070700,1767065560512,500.0,0.00012892,2]
[400070701,1767065560540,500.0,0.00012892,2]
[400070702,1767065560568,500.0,0.00012892,2]
[400070703,1767065560595,500.0,0.00012892,2]
[400070704,1767065560622,500.0,0.00012892,2]
[400070705,1767065560649,500.0,0.00012892,2]
[400070706,1767065560677,500.0,0.00012892,2]
[400070707,1767065560704,500.0,0.00012892,2]
[400070708,1767065560733,500.0,0.00012892,2]
[400070709,1767065560761,358.87937841,0.00012892,2]
[400070710,1767065560789,500.0,0.00012892,2]
[400070711,1767065560817,563.32549257,0.00012892,2]
[400070712,1767065560844,500.0,0.00012892,2]
[400070713,1767065560872,500.0,0.00012892,2]
[400070714,1767065560901,169.10738254,0.00012892,2]
[400070715,1767065560928,500.0,0.00012892,2]
[400070716,1767065560954,500.0,0.00012892,2]
[400070717,1767065560982,500.0,0.00012892,2]
[400070718,1767065561016,500.0,0.00012892,2]
[400070719,1767065561150,442.68016949,0.00012892,2]
[400070720,1767065561173,57.31983051,0.00012892,2]
[400070721,1767065561201,500.0,0.00012892,2]
[400070722,1767065561233,500.0,0.00012892,2]
[400070723,1767065561261,500.0,0.00012892,2]
[400070724,1767065561289,500.0,0.00012892,2]
[400070725,1767065561316,500.0,0.00012892,2]
[400070726,1767065561344,500.0,0.00012892,2]
[400070727,1767065561375,500.0,0.00012892,2]
[400070728,1767065561402,500.0,0.00012892,2]
[400070729,1767065561431,500.0,0.00012892,2]
[400070730,1767065561458,500.0,0.00012892,2]
[400070731,1767065561487,500.0,0.00012892,2]
[400070732,1767065561514,500.0,0.00012892,2]
[400070733,1767065561542,500.0,0.00012892,2]
[400070734,1767065561569,500.0,0.00012892,2]
[400070735,1767065561595,500.0,0.00012892,2]
[400070736,1767065561622,500.0,0.00012892,2]
[400070737,1767065561653,500.0,0.00012892,2]
[400070738,1767065561684,500.0,0.00012892,2]
[400070739,1767065561716,500.0,0.00012892,2]
[400070740,1767065561745,442.69016949,0.00012892,2]
[400070741,1767065561767,57.30983051,0.00012892,2]
[400070742,1767065561795,500.0,0.00012892,2]
[400070743,1767065561823,500.0,0.00012892,2]
[400070744,1767065561852,500.0,0.00012892,2]
[400070745,1767065561879,243.62596715,0.00012892,2]
[400070746,1767065561907,500.0,0.00012892,2]
[400070747,1767065561939,500.0,0.00012892,2]
[400070748,1767065561969,500.0,0.00012892,2]
[400070749,1767065562002,500.0,0.00012892,2]
[400070750,1767065562033,500.0,0.00012892,2]
[400070751,1767065562063,500.0,0.00012892,2]
[400070752,1767065569778,-4931.59271561,0.00012893,2]
[400070753,1767065569802,-10000.01,0.00012893,2]
[400070754,1767065569923,-10000.01,0.00012893,2]
[400070755,1767065570081,-10000.01,0.00012893,2]
[400070756,1767065572611,-10000.01,0.00012893,2]
[400070757,1767065575626,-4931.64271561,0.00012893,2]
[400070758,1767065575649,-136.72456878,0.00012893,2]
[400070759,1767065576329,5000.0,0.00012764,2]
[400070760,1767065599715,5000.0,0.00012893,2]
[400070761,1767065625083,167.04409555,0.0002876,120]
[400070762,1767065720140,-5000.0,0.00012764,2]
[400070763,1767065723968,-300.0,0.0001289,2]
[400070764,1767065723991,-371.41597256,0.00012891,2]
[400070765,1767065724016,-484.31993093,0.00012891,2]
[400070766,1767065724041,-502.38054938,0.00012891,2]
[400070767,1767065724064,-500.0,0.00012891,2]
[400070768,1767065724088,-500.0,0.00012891,2]
[400070769,1767065724113,-500.0,0.00012891,2]
[400070770,1767065724136,-500.0,0.00012891,2]
[400070771,1767065724160,-500.0,0.00012891,2]
[400070772,1767065724182,-178.40772997,0.00012891,2]
[400070773,1767065724205,-500.0,0.00012891,2]
[400070774,1767065724229,-163.47581716,0.00012891,2]
[400070775,1767065735817,5000.0,0.00013,3]
[400070776,1767065735885,-5000.0,0.00012891,2]
[400070777,1767065738345,-5000.0,0.00012891,2]
[400070778,1767065758895,5000.0,0.00012881,2]
[400070779,1767065781615,5000.0,0.00012881,2]
[400070780,1767065797720,4229.44417785,0.00012761,2]
[400070781,1767065805580,5000.0,0.0001281,2]
[400070782,1767065830450,200.0,0.00028767,120]
[400070783,1767065830610,5000.0,0.00011775,2]
[400070784,1767065848998,953.04,0.0001,2]
[400070785,1767065851369,953.04,0.000102,2]
[400070786,1767065853676,3093.93,0.00011884,2]
[400070787,1767065853698,1906.07,0.00011884,2]
[400070788,1767065853786,953.04,0.000104,2]
[400070789,1767065861938,-736.20401172,0.000106,2]
[400070790,1767065863541,-216.83598828,0.000106,2]
[400070791,1767065863564,-497.28117027,0.000108,2]
[400070792,1767065865388,-219.25225268,0.000108,2]
[400070793,1767065866846,-236.50657705,0.000108,2]
[400070794,1767065866867,-28.39630081,0.00011,2]
[400070795,1767065869471,-169.33706153,0.00011,2]
[400070796,1767065873497,-537.12395061,0.00011,2]
[400070797,1767065876857,5000.0,0.0001099,2]
[400070798,1767065882126,475.21,0.00028767,120]
[400070799,1767065899772,5000.0,0.0001099,2]
[400070800,1767065922980,0.01,0.0001099,2]
[400070801,1767065923004,3439.49365892,0.0001099,2]
[400070802,1767065945592,5000.0,0.0001099,2]
[400070803,1767065982254,-247.98812078,0.0001089,2]
[400070804,1767065984391,-347.72247666,0.0001089,2]
[400070805,1767065987680,-175.81545205,0.0001089,2]
[400070806,1767065989760,-344.03746616,0.0001089,2]
[400070807,1767065991218,-160.46518058,0.0001089,2]
[400070808,1767065993405,-156.51679708,0.0001089,2]
[400070809,1767065998824,-375.84034633,0.0001089,2]
[400070810,1767066001473,-159.99,0.0001089,2]
[400070811,1767066006228,-178.41010881,0.0001089,2]
[400070812,1767066007968,-318.2538688,0.0001089,2]
[400070813,1767066010547,-288.32652725,0.0001089,2]
[400070814,1767066013119,-272.71936737,0.0001089,2]
[400070815,1767066014617,-403.70845104,0.0001089,2]
[400070816,1767066016079,-315.30608388,0.0001089,2]
[400070817,1767066017717,-347.23699151,0.0001089,2]
[400070820,1767066019810,-172.878,0.0001089,2]
[400070821,1767066021469,-302.26783046,0.0001089,2]
[400070822,1767066024017,-432.51693124,0.0001089,2]
[400070823,1767066024038,-120.46787056,0.0001089,2]
[400070824,1767066026238,-225.23155453,0.0001089,2]
[400070825,1767066028773,-182.20746542,0.0001089,2]
[400070826,1767066033428,223.66,0.0001,2]
[400070827,1767066035694,5000.0,0.0001088,2]
[400070828,1767066071766,-279.82483717,0.00010781,2]
[400070829,1767066074159,-179.65413669,0.00010781,2]
[400070830,1767066098037,-68.43791665,0.00010781,2]
[400070831,1767066098060,-45.09310949,0.0001089,2]
[400070832,1767066098081,-770.55582215,0.00011374,2]
[400070833,1767066098103,-4054.4842611,0.00011857,2]
[400070834,1767066098127,-61.42889061,0.00011894,2]
[400070835,1767066104193,-459.47897386,0.00011775,2]
[400070836,1767066104215,-143.02535209,0.00011894,2]
[400070837,1767066104234,-188.0,0.00012328,2]
[400070838,1767066104254,-300.0,0.00012328,2]
[400070839,1767066104276,-246.9,0.00012329,2]
[400070840,1767066104297,-205.75,0.00012329,2]
[400070841,1767066104317,-171.46,0.00012329,2]
[400070842,1767066104337,-857.32,0.00012329,2]
[400070843,1767066104360,-300.0,0.00012574,2]
[400070844,1767066104383,-300.0,0.00012574,2]
[400070845,1767066104529,-300.0,0.00012574,2]
[400070846,1767066104553,-300.0,0.00012574,2]
[400070847,1767066104577,-300.0,0.00012574,2]
[400070848,1767066104600,-300.0,0.00012574,2]
[400070849,1767066104622,-300.0,0.00012574,2]
[400070850,1767066104643,-300.0,0.00012574,2]
[400070851,1767066104665,-28.06567405,0.00012574,2]
[400070852,1767066111544,-271.93432595,0.00012574,2]
[400070853,1767066111567,-300.0,0.00012574,2]
[400070854,1767066111591,-300.0,0.00012574,2]
[400070855,1767066111612,-300.0,0.00012574,2]
[400070856,1767066111633,-300.0,0.00012574,2]
[400070857,1767066111655,-300.0,0.00012574,2]
[400070858,1767066111677,-300.0,0.00012574,2]
[400070859,1767066111698,-177.0,0.00012836,2]
[400070860,1767066111719,-500.0,0.00012888,2]
[400070861,1767066111741,-288.58391644,0.00012888,2]
[400070862,1767066111762,-500.0,0.00012888,2]
[400070863,1767066111783,-500.0,0.00012888,2]
[400070864,1767066111805,-500.0,0.00012888,2]
[400070865,1767066111827,-462.48175761,0.00012888,2]
[400070866,1767066116051,-5000.0,0.00012888,2]
[400070867,1767066167020,-423.76507406,0.00012887,2]
[400070868,1767066167050,-500.0,0.00012887,2]
[400070869,1767066167079,-500.0,0.00012887,2]
[400070870,1767066167107,-500.0,0.00012887,2]
[400070871,1767066167135,-500.0,0.00012887,2]
[400070872,1767066167166,-500.0,0.00012887,2]
[400070873,1767066167193,-500.0,0.00012887,2]
[400070874,1767066167221,-500.0,0.00012887,2]
[400070875,1767066167250,-500.0,0.00012887,2]
[400070876,1767066167278,-500.0,0.00012887,2]
[400070877,1767066167482,-500.0,0.00012887,2]
[400070878,1767066167512,-263.13086925,0.00012887,2]
[400070879,1767066167541,-517.840773,0.00012887,2]
[400070880,1767066167589,-500.0,0.00012887,2]
[400070881,1767066167619,-500.0,0.00012887,2]
[400070882,1767066167649,-500.0,0.00012887,2]
[400070883,1767066167678,-500.0,0.00012887,2]
[400070884,1767066167707,-500.0,0.00012887,2]
[400070885,1767066167737,-500.0,0.00012887,2]
[400070886,1767066167767,-500.0,0.00012887,2]
[400070887,1767066167872,-500.0,0.00012887,2]
[400070888,1767066167900,-500.0,0.00012887,2]
[400070889,1767066167928,-500.0,0.00012887,2]
[400070890,1767066167958,-500.0,0.00012887,2]
[400070891,1767066167987,-500.0,0.00012887,2]
[400070892,1767066168017,-500.0,0.00012887,2]
[400070893,1767066168046,-500.0,0.00012887,2]
[400070894,1767066168074,-500.0,0.00012887,2]
[400070895,1767066168103,-500.0,0.00012887,2]
[400070896,1767066168133,-500.0,0.00012887,2]
[400070897,1767066168301,-500.0,0.00012887,2]
[400070898,1767066168331,-500.0,0.00012887,2]
[400070899,1767066168360,-500.0,0.00012887,2]
[400070900,1767066168389,-500.0,0.00012887,2]
[400070901,1767066168420,-500.0,0.00012887,2]
[400070902,1767066168448,-500.0,0.00012887,2]
[400070903,1767066168476,-500.0,0.00012887,2]
[400070904,1767066168505,-500.0,0.00012887,2]
[400070905,1767066168534,-500.0,0.00012887,2]
[400070906,1767066168563,-500.0,0.00012887,2]
[400070907,1767066168683,-500.0,0.00012887,2]
[400070908,1767066168712,-500.0,0.00012887,2]
[400070909,1767066168740,-500.0,0.00012887,2]
[400070910,1767066168767,-500.0,0.00012887,2]
[400070911,1767066168795,-370.11720082,0.00012887,2]
[400070912,1767066168824,-500.0,0.00012887,2]
[400070913,1767066168853,-500.0,0.00012887,2]
[400070914,1767066168880,-500.0,0.00012887,2]
[400070915,1767066168909,-500.0,0.00012887,2]
[400070916,1767066168937,-500.0,0.00012887,2]
[400070917,1767066172453,259.77559836,0.00012887,2]
[400070918,1767066172475,240.22440164,0.00012887,2]
[400070919,1767066172502,436.70442211,0.00012887,2]
[400070920,1767066172530,500.0,0.00012887,2]
[400070921,1767066172566,500.0,0.00012887,2]
[400070922,1767066172602,500.0,0.00012887,2]
[400070923,1767066172673,500.0,0.00012887,2]
[400070924,1767066172726,500.0,0.00012887,2]
[400070926,1767066208921,10000.0,0.00028767,120]
[400070927,1767066216488,10000.0,0.00028767,120]
[400070928,1767066224791,500.0,0.00012887,2]
[400070929,1767066224817,500.0,0.00012887,2]
[400070930,1767066224844,500.0,0.00012887,2]
[400070931,1767066224894,500.0,0.00012887,2]
[400070932,1767066225066,500.0,0.00012887,2]
[400070933,1767066225096,10000.0,0.00028767,120]
[400070934,1767066225126,500.0,0.00012887,2]
[400070935,1767066225156,621.79197355,0.00012887,2]
[400070936,1767066231904,10000.0,0.00028767,120]
[400070937,1767066235948,500.0,0.00012887,2]
[400070938,1767066235975,500.0,0.00012887,2]
[400070939,1767066236003,500.0,0.00012887,2]
[400070940,1767066236257,500.0,0.00012887,2]
[400070941,1767066236285,500.0,0.00012887,2]
[400070942,1767066236313,500.0,0.00012887,2]
[400070943,1767066236574,500.0,0.00012887,2]
[400070944,1767066236620,500.0,0.00012887,2]
[400070945,1767066236897,500.0,0.00012887,2]
[400070946,1767066236926,500.0,0.00012887,2]
[400070947,1767066237201,500.0,0.00012887,2]
[400070948,1767066237237,500.0,0.00012887,2]
[400070949,1767066237519,378.21802645,0.00012887,2]
[400070950,1767066237542,121.78197355,0.00012887,2]
[400070951,1767066237626,500.0,0.00012887,2]
[400070952,1767066237817,500.0,0.00012887,2]
[400070953,1767066237948,500.0,0.00012887,2]
[400070954,1767066238147,500.0,0.00012887,2]
[400070955,1767066238441,500.0,0.00012887,2]
[400070956,1767066238469,500.0,0.00012887,2]
[400070957,1767066238733,500.0,0.00012887,2]
[400070958,1767066238763,500.0,0.00012887,2]
[400070959,1767066238791,500.0,0.00012887,2]
[400070960,1767066238824,500.0,0.00012887,2]
[400070961,1767066238854,500.0,0.00012887,2]
[400070962,1767066238884,500.0,0.00012887,2]
[400070963,1767066238917,500.0,0.00012887,2]
[400070964,1767066238949,500.0,0.00012887,2]
[400070965,1767066239055,500.0,0.00012887,2]
[400070966,1767066239087,292.89565333,0.00012887,2]
[400070967,1767066239154,500.0,0.00012887,2]
[400070968,1767066239420,-5000.0,0.00012888,2]
[400070969,1767066240740,10000.0,0.00028767,120]
[400070970,1767066240874,-3591.47067788,0.00012888,2]
[400070971,1767066240894,-1200.0,0.00012891,2]
[400070972,1767066240914,-208.52932212,0.00012892,2]
[400070973,1767066243071,-469.44015882,0.00012893,2]
[400070974,1767066243096,-300.0,0.00012893,2]
[400070975,1767066243119,-500.0,0.00012894,2]
[400070976,1767066243143,-500.0,0.00012894,2]
[400070977,1767066243165,-179.2788214,0.00012894,2]
[400070978,1767066243188,-500.0,0.00012894,2]
[400070979,1767066243217,-500.0,0.00012894,2]
[400070980,1767066243239,-240.41240728,0.00012894,2]
[400070981,1767066243263,-514.99737985,0.00012894,2]
[400070982,1767066243285,-500.0,0.00012894,2]
[400070983,1767066243308,-500.0,0.00012894,2]
[400070984,1767066243333,-295.87123265,0.00012894,2]
[400070985,1767066250031,-204.12876735,0.00012894,2]
[400070986,1767066250054,-500.0,0.00012894,2]
[400070987,1767066250081,-4295.87123265,0.00012895,2]
[400070988,1767066252173,500.0,0.00012887,2]
[400070989,1767066252228,500.0,0.00012887,2]
[400070990,1767066252443,500.0,0.00012887,2]
[400070991,1767066252471,300.0,0.00012887,2]
[400070992,1767066257696,500.0,0.00012887,2]
[400070993,1767066267235,153.0,7.9e-07,2]
[400070994,1767066268314,153.0,7.9e-07,2]
[400070995,1767066269301,10000.0,0.00028767,120]
[400070996,1767066269336,153.0,7.9e-07,2]
[400070997,1767066270441,153.0,7.9e-07,2]
[400070998,1767066271452,153.0,7.9e-07,2]
[400070999,1767066272224,500.0,0.00012894,2]
[400071000,1767066272256,500.0,0.00012894,2]
[400071001,1767066272290,532.54396148,0.00012894,2]
[400071002,1767066272321,500.0,0.00012894,2]
[400071003,1767066272355,610.68216229,0.00012894,2]
[400071004,1767066272559,153.0,7.9e-07,2]
[400071005,1767066273491,153.0,7.9e-07,2]